bitfinex/quotes_ETHUSD_20260304
["timestamp","ask_amount","ask_price","bid_price","bid_amount"]
[1772601343083,0.51953809,1963.0,1962.2,0.001]
[1772601343318,0.51953809,1963.0,1962.2,1.27507611]
[1772601343613,0.51953809,1963.0,1962.2,0.001]
[1772601343614,0.51753809,1962.9,1962.2,0.001]
[1772601344311,0.51753809,1962.7,1962.2,0.001]
[1772601346286,1.27382044,1962.6,1962.2,0.001]
[1772601346510,1.79135853,1962.6,1962.2,0.001]
[1772601346887,1.79327688,1962.8,1962.2,0.51131149]
[1772601347088,1.27573879,1962.8,1962.2,0.51131149]
[1772601347307,1.27569153,1962.8,1962.2,0.51131149]
[1772601347520,0.002,1962.8,1962.2,0.51131149]
[1772601348296,0.002,1962.8,1962.3,0.5429183]
[1772601349122,0.52450517,1962.8,1962.2,0.001]
[1772601349302,0.52250517,1962.7,1962.2,0.001]
[1772601350315,1.27382044,1962.6,1962.2,0.001]
[1772601351107,1.79632561,1962.6,1962.2,0.001]
[1772601352721,0.52250517,1962.5,1962.2,0.001]
[1772601354326,1.79641967,1962.5,1962.2,0.001]
[1772601354530,1.27386753,1962.6,1962.2,0.001]
[1772601355509,1.7963049,1962.7,1962.2,0.5439183]
[1772601357531,1.27573949,1962.8,1962.2,0.5439183]
[1772601357707,1.27573949,1962.8,1962.3,0.5429183]
[1772601358732,1.27573949,1962.8,1962.3,0.5439183]
[1772601359039,0.002,1962.7,1962.3,0.5439183]
[1772601359403,0.002,1962.9,1962.6,0.5429183]
[1772601359630,0.002,1962.9,1962.7,0.5429183]
[1772601360219,0.002,1962.9,1962.5,0.5429183]
[1772601361939,0.002,1962.9,1962.7,0.5429183]
[1772601363949,0.002,1962.9,1962.5,0.5429183]
[1772601364144,0.52450517,1962.9,1962.3,1.81792555]
[1772601364546,0.52450517,1962.9,1962.4,0.5429183]
[1772601365422,0.52450517,1962.9,1962.3,0.001]
[1772601365845,0.52450517,1962.9,1962.3,1.81790361]
[1772601366044,1.27369064,1962.8,1962.3,0.5439183]
[1772601368160,1.27369064,1962.8,1962.4,0.5429183]
[1772601368651,1.27563493,1962.9,1962.4,0.5429183]
[1772601369226,1.7981401,1962.9,1962.4,0.5429183]
[1772601369426,0.52250517,1962.8,1962.4,0.5429183]
[1772601369827,0.52250517,1962.8,1962.3,0.001]
[1772601370054,1.79626071,1962.7,1962.3,0.001]
[1772601370267,0.52250517,1962.6,1962.3,0.001]
[1772601370632,0.52250517,1962.6,1962.4,0.001]
[1772601370831,1.818697,1962.6,1962.1,0.001]
[1772601371032,0.52250517,1962.5,1962.1,0.001]
[1772601372874,1.27395026,1962.4,1962.1,0.001]
[1772601373074,1.79645543,1962.4,1962.1,0.001]
[1772601374262,1.27395026,1962.4,1962.1,0.001]
[1772601374468,0.52250517,1962.3,1962.1,0.001]
[1772601375964,1.27408011,1962.2,1962.1,0.001]
[1772601376552,1.27408011,1962.2,1961.9,0.001]
[1772601376751,5.09592451,1962.4,1961.9,0.5439183]
[1772601376991,5.61842968,1962.4,1961.9,0.5439183]
[1772601377281,0.52250517,1962.3,1961.9,0.001]
[1772601378175,1.27408011,1962.2,1961.9,0.001]
[1772601379302,1.27388535,1962.5,1961.9,0.50408267]
[1772601379905,1.80669275,1962.5,1961.9,0.50408267]
[1772601381509,1.80669275,1962.5,1962.0,0.50308267]
[1772601382502,1.80669275,1962.5,1962.0,0.50418267]
[1772601383003,0.001,1962.4,1962.0,0.50418267]
[1772601386500,0.5338074,1962.4,1962.0,0.0011]
[1772601386702,0.5338074,1962.4,1962.0,0.50418267]
[1772601386902,0.5328074,1962.2,1962.0,0.0011]
[1772601388807,1.27414504,1962.1,1962.0,0.0011]
[1772601389306,1.80695244,1962.1,1962.0,0.0011]
[1772601389503,1.80695244,1962.1,1961.8,0.001]
[1772601392809,1.27414504,1962.1,1961.8,0.50408267]
[1772601393435,1.27408011,1962.2,1961.8,0.50408267]
[1772601394438,1.80688751,1962.2,1961.9,0.0011]
[1772601394738,1.27508011,1962.2,1961.9,0.50418267]
[1772601395524,0.001,1962.2,1961.9,0.50418267]
[1772601395917,1.27508259,1962.2,1961.9,0.50418267]
[1772601396341,0.001,1962.2,1961.9,0.50418267]
[1772601396545,1.27498819,1962.4,1962.0,0.50308267]
[1772601397238,0.001,1962.4,1962.0,0.50308267]
[1772601398940,0.001,1962.4,1962.1,0.50308267]
[1772601400533,0.5338074,1962.4,1961.9,0.50418267]
[1772601400928,0.5338074,1962.4,1962.0,0.50308267]
[1772601401334,1.27401518,1962.3,1962.0,0.50308267]
[1772601401534,1.2750016,1962.4,1962.0,0.50308267]
[1772601403739,1.807809,1962.4,1962.0,0.50308267]
[1772601404449,1.2750016,1962.4,1962.0,0.50308267]
[1772601404950,0.001,1962.4,1962.1,0.50308267]
[1772601405347,1.2757042,1962.8,1962.1,0.50308267]
[1772601405540,0.002,1962.8,1962.3,0.50308267]
[1772601407742,0.002,1962.8,1962.4,1.27395026]
[1772601407953,0.002,1962.8,1962.5,0.50308267]
[1772601410968,0.002,1962.8,1962.6,0.51895427]
[1772601413950,0.002,1962.8,1962.7,0.51895427]
[1772601414189,0.002,1962.9,1962.6,1.27381794]
[1772601414462,0.52610286,1963.3,1962.8,0.51895427]
[1772601414842,0.52610286,1963.3,1962.9,0.51895427]
[1772601415054,1.79128402,1963.9,1963.0,0.51895427]
[1772601415360,1.79128402,1963.9,1963.2,0.51895427]
[1772601415749,0.51826177,1963.8,1963.2,0.51895427]
[1772601417774,0.51826177,1963.8,1963.1,1.273496]
[1772601417775,1.79133378,1963.8,1963.3,1.79232054]
[1772601417970,1.79133378,1963.8,1963.3,0.51895427]
[1772601418473,1.27307201,1963.8,1963.3,0.51895427]
[1772601418877,1.27302351,1963.9,1963.3,0.51895427]
[1772601419541,1.79122099,1964.0,1963.3,0.51895427]
[1772601419740,5.09150532,1964.1,1963.4,1.27330141]
[1772601419741,1.27284761,1964.1,1963.4,1.27330141]
[1772601419942,1.27284761,1964.1,1963.5,0.51895427]
[1772601420242,0.002,1963.8,1963.5,0.51895427]
[1772601420443,2.12119271,1964.9,1963.8,0.51895427]
[1772601420642,2.12119271,1964.9,1963.6,1.507]
[1772601420643,1.83053959,1964.9,1964.3,0.51895427]
[1772601421271,0.55816072,1964.9,1964.5,0.51895427]
[1772601421591,3.93980279,1965.8,1964.9,0.51895427]
[1772601421592,1.79015421,1965.6,1964.9,0.51895427]
[1772601421749,1.79015421,1965.6,1964.9,1.7912444]
[1772601422138,1.79015421,1965.6,1965.0,0.51895427]
[1772601422379,0.51826177,1965.6,1965.0,0.51895427]
[1772601422667,0.51826177,1965.6,1964.8,1.507]
[1772601422668,0.51826177,1965.5,1964.8,1.507]
[1772601423066,0.51826177,1965.4,1964.5,0.51895427]
[1772601423368,0.51826177,1965.4,1964.6,0.51895427]
[1772601423567,1.27189118,1965.6,1964.6,0.51895427]
[1772601423950,1.27189118,1965.6,1964.8,0.51895427]
[1772601424151,1.27185767,1965.7,1965.0,0.51895427]
[1772601424465,1.27178691,1965.8,1965.2,0.51895427]
[1772601424665,0.51826177,1965.8,1965.0,0.51895427]
[1772601425386,0.51826177,1965.6,1964.8,0.51895427]
[1772601425959,1.27194098,1965.5,1964.8,0.51895427]
[1772601426281,1.27194098,1965.5,1964.9,0.51895427]
[1772601426983,0.51826177,1965.4,1964.7,0.51895427]
[1772601427757,1.29830543,1965.4,1964.7,0.51895427]
[1772601428095,0.51826177,1965.1,1964.3,0.51895427]
[1772601428259,0.51826177,1965.1,1964.3,1.79165562]
[1772601428458,0.51826177,1965.1,1964.4,0.51895427]
[1772601429079,1.7903672,1965.3,1964.4,0.51895427]
[1772601429287,1.27210543,1965.3,1964.5,0.51895427]
[1772601430492,5.08821567,1965.4,1964.5,0.51895427]
[1772601430695,5.60647744,1965.4,1964.6,0.51895427]
[1772601430863,0.51826177,1965.3,1964.6,0.51895427]
[1772601431995,0.51826177,1965.3,1964.3,1.27268789]
[1772601431996,0.51826177,1965.2,1964.4,0.51895427]
[1772601432793,1.79046165,1965.1,1964.6,0.001]
[1772601435379,0.51826177,1965.0,1964.6,0.001]
[1772601436362,1.79043943,1965.2,1964.6,0.001]
[1772601436562,0.002,1965.4,1964.6,0.51995427]
[1772601436563,1.27210494,1965.3,1964.6,0.51995427]
[1772601437071,1.79230473,1965.4,1964.7,0.51895427]
[1772601437784,0.002,1965.4,1964.9,0.51895427]
[1772601438200,1.27400949,1965.4,1964.9,0.51895427]
[1772601438497,0.002,1965.4,1964.9,0.51895427]
[1772601438993,0.002,1965.5,1965.0,0.52393557]
[1772601440278,0.002,1965.5,1965.2,0.50410745]
[1772601441574,1.7980802,1966.1,1965.3,0.50410745]
[1772601441966,2.3030126,1966.4,1965.5,0.50410745]
[1772601442170,1.27148814,1966.2,1965.6,0.50410745]
[1772601443299,1.79796021,1966.3,1965.6,0.50410745]
[1772601444804,1.79796021,1966.3,1965.7,1.27181156]
[1772601445009,0.52648624,1966.5,1965.8,0.50410745]
[1772601445673,0.52648624,1966.3,1965.4,1.506]
[1772601445900,1.29830543,1966.4,1964.6,5.09099967]
[1772601445901,0.52648624,1966.1,1965.1,1.7762677]
[1772601446102,0.52648624,1965.9,1965.1,1.7762677]
[1772601446297,0.52648624,1965.9,1965.2,0.50410745]
[1772601446894,0.52648624,1965.7,1965.0,1.99810745]
[1772601447074,0.52648624,1965.7,1965.0,1.494]
[1772601447497,0.52648624,1965.7,1965.0,0.001]
[1772601448788,0.52648624,1965.5,1965.0,0.001]
[1772601448989,0.52648624,1965.3,1965.0,0.001]
[1772601450481,1.27200569,1965.4,1965.0,0.001]
[1772601450878,1.27213515,1965.2,1965.0,0.001]
[1772601452105,0.52648624,1965.1,1964.7,0.001]
[1772601452802,1.27213515,1965.2,1964.7,0.001]
[1772601452983,1.79862139,1965.2,1964.7,0.001]
[1772601453183,0.52648624,1965.1,1964.7,0.001]
[1772601453393,0.52648624,1965.1,1964.5,0.50510745]
[1772601454006,1.27213515,1965.2,1964.6,0.50410745]
[1772601454209,0.52648624,1965.3,1964.6,0.50410745]
[1772601454683,1.27200569,1965.4,1964.6,0.50410745]
[1772601455110,1.27200569,1965.4,1964.8,0.50410745]
[1772601455411,1.79847694,1965.5,1964.8,0.50410745]
[1772601457020,0.52648624,1965.4,1964.8,0.50410745]
[1772601457315,0.52648624,1965.4,1964.9,0.50410745]
[1772601457520,1.79850431,1965.4,1964.9,0.50410745]
[1772601457816,1.27201807,1965.4,1964.9,0.50410745]
[1772601458024,1.79839127,1965.6,1964.9,0.50410745]
[1772601458193,1.27190503,1965.6,1964.9,0.50410745]
[1772601458395,5.08724887,1965.7,1964.9,0.50410745]
[1772601458396,1.27184431,1965.7,1964.9,0.50410745]
[1772601459200,1.27184431,1965.7,1965.1,0.50410745]
[1772601459515,0.002,1965.4,1965.1,0.50410745]
[1772601459818,0.002,1966.0,1965.1,0.50410745]
[1772601459819,0.002,1965.5,1965.1,0.50410745]
[1772601461296,0.002,1965.5,1965.3,0.50410745]
[1772601465230,0.002,1965.5,1965.3,1.77617334]
[1772601466026,0.002,1965.5,1965.3,0.50410745]
[1772601466800,0.002,1965.5,1965.1,1.77626925]
[1772601467202,0.002,1965.5,1965.1,5.64626925]
[1772601467802,0.002,1965.5,1965.1,3.87]
[1772601468029,0.52848624,1965.5,1965.1,3.87]
[1772601468212,1.80043171,1965.5,1965.1,3.87]
[1772601468529,0.002,1965.5,1965.1,3.87]
[1772601469031,1.27395154,1965.5,1965.1,3.87]
[1772601469231,0.002,1965.5,1965.2,0.51463139]
[1772601470149,0.002,1965.5,1965.2,1.78671443]
[1772601470307,0.002,1965.5,1965.3,0.51463139]
[1772601471553,0.52801979,1965.5,1965.1,3.70515829]
[1772601472127,1.80002548,1965.4,1965.1,3.70515829]
[1772601472735,0.002,1965.4,1965.1,4.97734633]
[1772601472942,0.002,1965.4,1965.1,3.70515829]
[1772601473108,0.002,1965.4,1965.0,0.51563139]
[1772601473442,0.52801979,1965.4,1965.0,0.001]
[1772601474223,0.52601979,1965.3,1965.0,0.001]
[1772601474635,0.002,1965.5,1965.0,0.51563139]
[1772601476338,0.002,1965.5,1965.2,0.51463139]
[1772601476541,0.002,1965.5,1965.3,2.02363139]
[1772601477806,0.002,1965.5,1965.4,0.51463139]
[1772601478007,0.002,1966.0,1965.5,0.51463139]
[1772601478211,0.52801979,1966.0,1965.3,2.02363139]
[1772601478420,0.52801979,1966.0,1965.4,1.2719581]
[1772601478844,0.52801979,1966.0,1965.4,1.78658949]
[1772601479212,0.52801979,1966.0,1965.3,2.78102911]
[1772601479419,0.52801979,1966.0,1965.3,1.509]
[1772601480338,0.52601979,1965.8,1965.3,2.78106356]
[1772601480535,0.002,1966.0,1965.4,0.51463139]
[1772601480910,0.52601979,1965.9,1965.3,2.78106356]
[1772601481115,0.52601979,1965.9,1965.0,1.7878542]
[1772601481311,0.52601979,1965.9,1965.0,0.51563139]
[1772601481618,0.52601979,1965.8,1965.0,0.001]
[1772601482343,0.52601979,1965.6,1965.0,0.001]
[1772601484018,0.52601979,1965.6,1965.0,0.51563139]
[1772601485748,4.36450152,1965.9,1965.1,0.51463139]
[1772601486124,4.36450152,1965.9,1965.1,0.51563139]
[1772601486320,0.002,1965.5,1965.1,0.51563139]
[1772601487252,0.002,1965.5,1965.1,0.001]
[1772601488449,0.52801979,1965.5,1965.1,0.001]
[1772601488848,0.52801979,1965.5,1965.0,0.001]
[1772601489626,0.52601979,1965.3,1965.0,0.001]
[1772601489956,0.52601979,1965.3,1964.8,2.78939369]
[1772601489957,0.52601979,1965.3,1964.8,0.001]
[1772601490478,0.52601979,1965.3,1964.8,0.003]
[1772601491558,1.79815494,1965.2,1964.8,0.003]
[1772601491929,0.52601979,1965.1,1964.8,0.001]
[1772601492756,0.002,1965.5,1964.8,0.51563139]
[1772601492938,1.27394425,1965.5,1964.8,0.51563139]
[1772601493457,1.27394425,1965.5,1965.0,0.51463139]
[1772601493458,1.27395077,1965.5,1965.0,0.51463139]
[1772601493653,0.002,1965.5,1964.9,1.27431398]
[1772601494032,0.002,1965.5,1964.9,1.78894537]
[1772601494569,0.002,1965.5,1964.9,0.51663139]
[1772601494866,0.52801979,1965.5,1964.9,0.002]
[1772601495635,0.52601979,1965.3,1964.7,0.001]
[1772601495877,0.52601979,1965.3,1964.7,0.003]
[1772601498369,0.52873893,1965.1,1964.7,0.003]
[1772601499668,1.27213515,1965.2,1964.7,0.003]
[1772601500373,1.27213515,1965.2,1964.8,0.001]
[1772601500548,0.55022231,1965.1,1964.8,0.001]
[1772601500755,0.55022231,1965.1,1964.5,0.001]
[1772601503073,0.55022231,1964.9,1964.5,0.001]
[1772601503580,0.55022231,1964.7,1964.3,0.001]
[1772601504599,0.55022231,1964.7,1963.6,1.8268047]
[1772601504763,0.55022231,1964.7,1963.6,0.55368828]
[1772601505080,0.55022231,1964.5,1963.6,1.8268484]
[1772601506572,0.55022231,1964.5,1963.7,0.55368828]
[1772601507043,1.27252366,1964.6,1963.7,0.55368828]
[1772601507244,1.27252366,1964.6,1963.9,0.55368828]
[1772601508076,1.82271197,1964.7,1963.9,0.55368828]
[1772601508279,0.55022231,1965.0,1963.9,0.55368828]
[1772601509279,1.82255169,1964.9,1964.1,0.55368828]
[1772601510950,0.55022231,1964.8,1964.1,0.55368828]
[1772601511682,1.27245889,1964.7,1964.2,1.27278281]
[1772601511883,1.27245889,1964.7,1964.1,0.55368828]
[1772601512084,1.8226812,1964.7,1964.1,0.55368828]
[1772601512394,0.55022231,1964.6,1964.2,0.001]
[1772601513388,0.55022231,1964.6,1964.0,0.001]
[1772601513753,1.27258844,1964.5,1964.0,0.001]
[1772601513953,1.82281075,1964.5,1964.0,0.001]
[1772601514878,1.27258844,1964.5,1964.0,0.001]
[1772601515081,0.55022231,1964.4,1964.0,0.001]
[1772601515954,1.27271801,1964.3,1964.0,0.001]
[1772601516481,0.55022231,1964.6,1964.0,0.001]
[1772601519183,1.82281075,1964.5,1964.0,0.001]
[1772601519378,0.55022231,1964.4,1964.0,0.001]
[1772601521175,5.09035377,1964.6,1964.0,1.82758428]
[1772601521687,5.64057608,1964.6,1964.0,1.82758428]
[1772601523082,0.55022231,1964.5,1964.0,0.001]
[1772601523386,1.27265322,1964.4,1964.0,0.001]
[1772601523563,0.55022231,1964.3,1964.0,0.001]
[1772601524090,1.27265322,1964.4,1964.0,0.001]
[1772601524453,1.82287553,1964.4,1964.0,0.001]
[1772601524986,0.55022231,1964.3,1964.1,0.001]
[1772601525188,1.82297184,1964.3,1964.0,0.001]
[1772601526766,0.002,1964.5,1964.0,0.55468828]
[1772601527397,0.002,1964.5,1964.2,0.55368828]
[1772601528800,0.002,1964.5,1964.1,0.52462513]
[1772601529506,0.002,1964.5,1964.2,0.52462513]
[1772601530502,0.002,1964.8,1964.3,0.52462513]
[1772601531119,0.5663713,1964.8,1964.1,1.27282501]
[1772601531404,0.5643713,1964.7,1964.0,0.001]
[1772601531561,0.5643713,1964.5,1964.0,0.001]
[1772601532811,1.27444297,1964.8,1964.0,0.52562513]
[1772601533716,1.27444297,1964.8,1964.1,1.79747274]
[1772601535188,1.27444297,1964.8,1964.2,0.52462513]
[1772601536311,1.27444297,1964.8,1964.3,1.79734314]
[1772601536610,0.002,1965.2,1964.4,0.52462513]
[1772601536813,1.27413804,1965.2,1964.4,0.52462513]
[1772601537288,1.83850934,1965.2,1964.4,0.52462513]
[1772601538321,0.5663713,1965.2,1964.4,0.52462513]
[1772601538508,0.002,1965.2,1964.6,0.52462513]
[1772601539094,0.002,1965.2,1964.7,0.52462513]
[1772601539492,0.002,1965.5,1964.8,0.52462513]
[1772601539918,0.002,1965.0,1964.8,0.52462513]
[1772601540593,0.002,1965.0,1964.9,1.79695451]
[1772601541727,0.002,1965.5,1965.0,0.52462513]
[1772601542298,0.5643713,1965.3,1964.6,0.52462513]
[1772601542503,0.5643713,1965.3,1964.5,2.78258844]
[1772601542816,0.5643713,1965.1,1964.5,3.30721357]
[1772601543418,0.5643713,1965.1,1964.5,2.03462513]
[1772601543594,0.5643713,1965.1,1964.5,2.78257101]
[1772601543794,1.27212065,1965.3,1964.6,0.52462513]
[1772601544005,1.27397239,1965.5,1964.6,0.52462513]
[1772601544292,1.83834369,1965.5,1964.6,0.52462513]
[1772601544804,0.5643713,1965.4,1964.7,1.79708402]
[1772601545121,0.002,1965.5,1964.8,0.52462513]
[1772601546303,0.5643713,1965.4,1964.7,1.27245889]
[1772601546832,0.5643713,1965.4,1964.7,1.79708402]
[1772601547037,0.5643713,1965.4,1964.8,0.52462513]
[1772601547219,0.5643713,1965.3,1964.6,5.61446072]
[1772601548809,0.5643713,1965.3,1964.6,1.79714879]
[1772601549043,0.5643713,1965.2,1964.6,1.27252366]
[1772601549346,0.5643713,1965.2,1964.5,1.27253937]
[1772601550586,0.5643713,1965.2,1964.6,0.52462513]
[1772601551033,0.002,1965.5,1964.8,0.52462513]
[1772601551343,1.8383174,1965.5,1964.8,0.52462513]
[1772601551634,0.5643713,1965.3,1964.5,1.27255313]
[1772601551810,0.5643713,1965.3,1964.6,0.001]
[1772601552016,0.5663713,1965.3,1964.6,0.001]
[1772601553512,1.27213515,1965.2,1964.6,0.001]
[1772601553718,0.5643713,1965.1,1964.6,0.001]
[1772601556144,1.27226463,1965.0,1964.6,0.001]
[1772601556452,0.5643713,1964.9,1964.6,0.001]
[1772601556652,1.83650645,1965.2,1964.6,0.001]
[1772601556836,1.83650645,1965.2,1964.6,0.52562513]
[1772601557544,0.5643713,1965.2,1964.6,0.52562513]
[1772601558264,1.83656854,1965.2,1964.6,1.79809321]
[1772601558467,0.51902728,1965.0,1964.6,0.001]
[1772601558750,0.51902728,1965.0,1964.5,0.001]
[1772601559252,0.51902728,1964.8,1964.5,0.001]
[1772601560424,1.79874787,1964.7,1964.5,0.001]
[1772601560947,0.52628898,1964.7,1964.5,0.001]
[1772601562323,1.79875561,1964.7,1964.5,0.001]
[1772601562954,1.79861836,1964.9,1964.5,0.001]
[1772601563153,0.52628898,1964.9,1964.5,0.001]
[1772601563522,1.29667393,1964.9,1964.5,0.001]
[1772601563725,0.52628898,1964.6,1964.3,0.001]
[1772601563944,0.52628898,1964.6,1964.0,0.001]
[1772601564145,0.52628898,1964.4,1964.0,0.001]
[1772601564557,1.27271801,1964.3,1964.0,0.001]
[1772601564728,1.79900699,1964.3,1964.0,0.001]
[1772601565756,1.79880206,1964.7,1964.0,0.56225282]
[1772601566341,0.52628898,1964.6,1964.3,0.001]
[1772601566548,1.27265322,1964.4,1964.3,0.001]
[1772601566752,1.7989422,1964.4,1964.3,0.001]
[1772601567751,1.7989422,1964.4,1964.0,0.001]
[1772601568445,1.29667393,1964.2,1963.9,0.001]
[1772601568650,1.79909487,1964.2,1963.9,0.001]
[1772601568830,1.79897858,1964.4,1963.9,0.001]
[1772601569031,0.002,1965.0,1963.9,0.56225282]
[1772601569232,0.002,1965.0,1964.2,0.56125282]
[1772601570860,0.002,1965.0,1964.4,0.56125282]
[1772601571237,0.52828898,1965.0,1964.4,0.56125282]
[1772601571644,0.002,1965.0,1964.4,0.56125282]
[1772601574063,0.002,1965.0,1964.6,0.56125282]
[1772601576273,0.002,1965.0,1964.5,1.8337921]
[1772601576464,0.52828898,1965.0,1964.5,1.27253928]
[1772601576658,0.52828898,1965.0,1964.5,1.8337921]
[1772601577954,0.002,1964.9,1964.5,1.8337921]
[1772601578156,0.002,1964.9,1964.5,1.83383567]
[1772601579065,0.002,1964.9,1964.6,0.56125282]
[1772601580463,0.002,1965.1,1964.8,0.56125282]
[1772601582573,0.002,1965.1,1965.0,0.56125282]
[1772601584570,0.002,1965.1,1965.0,1.83351745]
[1772601586295,0.002,1965.5,1965.1,0.56125282]
[1772601586766,0.002,1965.5,1965.2,1.27213515]
[1772601587456,0.002,1965.5,1965.2,1.83338797]
[1772601590571,10.85052815,1966.3,1965.3,0.5368935]
[1772601590768,9.72888798,1966.8,1965.5,0.5368935]
[1772601590769,1.27122953,1966.6,1965.5,0.5368935]
[1772601590948,1.27122953,1966.6,1965.2,1.27213515]
[1772601590949,1.29667393,1966.1,1965.3,0.5368935]
[1772601591148,1.27161749,1966.0,1965.3,1.80890274]
[1772601591665,2.5682675,1966.1,1965.4,0.5368935]
[1772601591841,0.002,1966.0,1965.4,0.5368935]
[1772601592249,2.5682675,1966.1,1965.4,0.5368935]
[1772601592449,1.27159357,1966.1,1965.4,0.5368935]
[1772601592848,0.002,1966.0,1965.4,0.5368935]
[1772601594050,0.002,1966.0,1965.6,0.5368935]
[1772601595157,0.51252815,1966.0,1965.3,0.5368935]
[1772601596054,1.27168218,1965.9,1965.4,0.5368935]
[1772601597583,1.78221033,1965.9,1965.4,0.5368935]
[1772601598851,0.002,1965.8,1965.4,1.80884537]
[1772601599051,0.002,1965.8,1965.5,0.5368935]
[1772601599753,0.002,1965.7,1965.3,1.80891716]
[1772601600079,0.002,1965.7,1965.3,0.5368935]
[1772601600460,1.27169531,1965.9,1965.1,0.5368935]
[1772601600461,0.51252815,1965.6,1965.1,0.5368935]
[1772601600666,0.51052815,1965.6,1965.1,0.5368935]
[1772601600865,0.002,1965.5,1964.9,1.80919003]
[1772601601066,1.27394098,1965.5,1965.0,0.5368935]
[1772601601272,0.002,1965.5,1965.0,0.5368935]
[1772601601458,0.51252815,1965.5,1965.0,0.5368935]
[1772601602169,0.002,1965.5,1965.0,0.5368935]
[1772601602475,0.002,1965.5,1965.3,0.001]
[1772601605369,0.51252815,1965.5,1965.3,0.001]
[1772601605759,1.78448943,1965.5,1965.3,0.001]
[1772601606001,0.51052815,1965.4,1965.0,0.001]
[1772601606180,1.27196128,1965.5,1964.4,1.80950062]
[1772601606181,0.51052815,1965.2,1964.4,1.80950062]
[1772601606495,0.51052815,1965.2,1964.5,0.5368935]
[1772601607479,0.002,1965.1,1964.6,0.5368935]
[1772601607995,0.002,1965.1,1964.8,0.5368935]
[1772601608366,0.51252815,1965.0,1964.5,1.27258844]
[1772601608565,0.51052815,1965.0,1964.5,1.27258844]
[1772601608986,0.51252815,1964.9,1964.4,2.79262357]
[1772601609182,0.51052815,1964.9,1964.4,2.79262357]
[1772601609965,0.51252815,1964.8,1964.4,1.52]
[1772601610621,0.002,1964.7,1964.4,1.52]
[1772601610767,0.51252815,1964.7,1964.2,1.27275244]
[1772601611092,0.002,1964.6,1964.2,1.27275244]
[1772601611663,0.002,1964.6,1964.2,1.80964594]
[1772601611882,0.002,1964.6,1964.4,1.27265322]
[1772601612084,0.51052815,1965.1,1964.5,0.5368935]
[1772601613077,0.51052815,1965.1,1964.3,1.80956937]
[1772601613393,0.51052815,1965.1,1964.2,1.27274274]
[1772601613896,0.51052815,1965.1,1964.2,1.80963624]
[1772601614103,0.51052815,1964.9,1964.2,1.80963624]
[1772601614978,0.51052815,1964.9,1964.2,0.5368935]
[1772601615300,0.51052815,1964.9,1964.2,1.27277179]
[1772601615491,0.51052815,1964.9,1964.3,0.001]
[1772601616404,0.002,1965.6,1964.7,0.5368935]
[1772601616589,0.002,1965.6,1964.3,0.001]
[1772601616590,0.002,1965.6,1965.0,0.5368935]
[1772601618597,0.002,1965.6,1965.1,1.27219988]
[1772601618980,0.002,1965.6,1965.0,1.80911171]
[1772601620001,0.53968525,1965.6,1965.0,1.80911171]
[1772601620180,0.53968525,1965.6,1964.8,5.62398247]
[1772601620380,0.53968525,1965.6,1964.8,1.27238741]
[1772601620381,0.53768525,1965.4,1964.8,1.27238741]
[1772601620775,0.53768525,1965.4,1964.7,1.27242324]
[1772601621390,0.002,1965.6,1964.8,0.53442524]
[1772601621591,0.53968525,1965.6,1964.8,0.53442524]
[1772601622517,0.53968525,1965.6,1964.9,1.27232938]
[1772601623001,0.53968525,1965.6,1964.4,1.27265322]
[1772601623002,0.53768525,1965.5,1964.4,1.27265322]
[1772601623208,0.53768525,1965.5,1964.4,1.80707846]
[1772601623578,0.53768525,1965.5,1964.5,0.53442524]
[1772601625108,0.53768525,1965.5,1964.6,1.27252366]
[1772601625320,0.53768525,1965.5,1964.7,0.53442524]
[1772601627712,0.53768525,1965.4,1964.8,1.27239413]
[1772601627910,0.53768525,1965.4,1964.8,1.27339413]
[1772601628613,0.53768525,1965.4,1964.8,1.80781937]
[1772601629113,0.53768525,1965.4,1964.8,1.27339413]
[1772601629723,0.53768525,1965.4,1964.8,0.001]
[1772601629724,0.53768525,1965.3,1964.8,0.001]
[1772601629925,0.53768525,1965.3,1964.7,0.001]
[1772601631488,0.53968525,1965.5,1964.7,0.53542524]
[1772601631712,1.81163157,1965.5,1964.8,1.80681937]
[1772601631891,0.53968525,1965.5,1964.7,0.001]
[1772601632208,0.53768525,1965.0,1964.5,1.27358502]
[1772601632416,0.53768525,1965.0,1964.5,0.001]
[1772601633813,1.81001463,1964.9,1964.5,0.001]
[1772601634730,0.53768525,1964.8,1964.3,0.001]
[1772601635895,1.81014414,1964.7,1964.3,0.001]
[1772601636531,1.2723909,1964.9,1964.3,0.001]
[1772601636700,0.53768525,1964.8,1964.3,0.001]
[1772601639100,1.81010123,1964.8,1964.3,0.001]
[1772601639301,0.53768525,1964.8,1964.3,0.001]
[1772601639515,1.81009158,1964.8,1964.3,0.001]
[1772601641626,0.53768525,1964.8,1964.4,0.001]
[1772601641804,1.27237628,1964.9,1964.4,0.53542524]
[1772601642121,1.27437628,1964.9,1964.4,0.53542524]
[1772601643795,0.53968525,1964.9,1964.4,0.001]
[1772601644446,0.53968525,1964.9,1964.4,1.2736531]
[1772601644756,0.53968525,1964.9,1964.4,0.001]
[1772601644945,0.53968525,1964.9,1964.4,1.27364872]
[1772601645828,1.81206383,1964.9,1964.4,1.27364872]
[1772601646648,0.53968525,1964.9,1964.4,1.27364872]
[1772601646849,0.53968525,1964.9,1964.5,0.53442524]
[1772601646850,0.002,1964.9,1964.5,0.53442524]
[1772601647052,0.002,1965.2,1964.5,0.53442524]
[1772601647422,0.002,1965.5,1964.5,0.53442524]
[1772601647732,0.002,1965.5,1964.6,1.27252366]
[1772601647933,0.002,1965.5,1964.7,0.53442524]
[1772601650147,0.51249266,1965.4,1964.8,1.75499217]
[1772601650923,0.51249266,1965.4,1964.7,1.27245375]
[1772601651368,1.78643364,1965.5,1964.8,0.48259804]
[1772601651670,0.51249266,1965.4,1964.8,0.48259804]
[1772601651823,1.27394098,1965.5,1964.8,0.48259804]
[1772601652545,1.78643364,1965.5,1964.9,1.27232938]
[1772601653480,0.002,1965.5,1965.0,0.48259804]
[1772601654555,0.002,1965.5,1965.1,1.75479792]
[1772601655533,0.002,1965.4,1965.1,1.75479792]
[1772601658137,0.002,1965.4,1965.2,0.48259804]
[1772601658577,0.002,1965.4,1965.3,1.27207042]
[1772601658751,0.002,1965.4,1965.2,1.75468137]